bitfinex-derivatives/quotes_ETHF0:USTF0_20260303
["timestamp","ask_amount","ask_price","bid_price","bid_amount"]
[1772538102956,0.57424066,1963.8,1963.3,0.39264683]
[1772538103650,0.57424066,1963.6,1963.4,6.673]
[1772538103847,0.58063074,1963.6,1963.3,6.673]
[1772538104454,0.57424066,1963.5,1963.3,6.673]
[1772538104649,0.58063074,1963.6,1963.3,7.21503459]
[1772538104854,0.58063074,1963.6,1963.3,6.673]
[1772538105255,0.58063074,1963.6,1963.2,0.00572809]
[1772538105554,0.58063074,1963.6,1963.2,6.67872809]
[1772538105955,0.58063074,1963.6,1963.2,0.00572809]
[1772538106157,0.58063074,1963.6,1963.2,0.54776268]
[1772538106856,0.00639008,1963.6,1963.3,0.54203459]
[1772538107052,0.57424066,1963.8,1963.3,0.54203459]
[1772538107053,4.2468766,1964.1,1963.3,0.54203459]
[1772538107260,0.57424066,1964.1,1963.3,0.54203459]
[1772538107460,0.57424066,1964.0,1963.3,0.54203459]
[1772538108156,0.57892859,1964.0,1963.3,0.54203459]
[1772538111561,0.57892859,1964.0,1963.3,7.21503459]
[1772538111858,0.57892859,1964.0,1963.4,0.54664988]
[1772538114364,0.57892859,1964.0,1963.4,6.673]
[1772538114561,0.57892859,1964.0,1963.4,7.21964988]
[1772538115162,0.58377093,1963.7,1963.0,0.54664988]
[1772538115463,0.58377093,1963.7,1963.1,0.54664988]
[1772538116262,0.58377093,1963.7,1963.1,0.55287084]
[1772538118564,0.58377093,1963.8,1963.1,0.55287084]
[1772538120465,0.58377093,1963.8,1963.2,7.22064988]
[1772538121961,0.58377093,1963.8,1963.1,7.22687084]
[1772538122160,0.58377093,1963.8,1963.2,0.54664988]
[1772538122363,0.58377093,1963.8,1963.1,6.68022096]
[1772538122564,0.58377093,1963.8,1963.1,7.22687084]
[1772538123065,0.58377093,1963.8,1963.2,0.54664988]
[1772538123265,0.58377093,1963.7,1963.2,0.54664988]
[1772538125971,0.58377093,1963.7,1963.3,0.54664988]
[1772538126567,0.58377093,1963.7,1963.2,6.674]
[1772538126773,0.58377093,1963.7,1963.3,0.54664988]
[1772538128775,0.58377093,1963.7,1963.1,0.55287084]
[1772538128977,0.58377093,1963.6,1963.1,6.68022096]
[1772538129168,0.58377093,1963.6,1962.6,0.49047096]
[1772538129169,0.58377093,1963.5,1962.6,0.49047096]
[1772538129373,0.58377093,1963.8,1962.8,0.49047096]
[1772538129572,7.38277474,1963.7,1962.8,0.49047096]
[1772538129777,7.96654567,1963.7,1962.8,0.49047096]
[1772538129975,0.58377093,1963.7,1962.8,0.49047096]
[1772538130279,0.58377093,1963.7,1962.8,0.49625819]
[1772538130478,7.38277474,1963.7,1962.8,0.49625819]
[1772538130776,0.58377093,1963.8,1962.8,0.49625819]
[1772538135483,0.58377093,1963.8,1963.0,0.4906447]
[1772538135684,0.58845886,1964.0,1963.0,0.4906447]
[1772538136079,0.58377093,1963.9,1963.0,0.4906447]
[1772538136481,0.58377093,1963.9,1963.2,0.49126702]
[1772538137483,0.58377093,1963.8,1963.2,0.49126702]
[1772538139086,0.55317886,1963.6,1962.9,0.49041819]
[1772538139282,0.55317886,1963.6,1963.0,6.674]
[1772538139483,0.55317886,1963.6,1963.0,7.16436834]
[1772538139687,0.58546517,1963.4,1962.9,0.49036834]
[1772538142478,0.58546517,1963.7,1962.9,0.49036834]
[1772538142887,0.58546517,1963.8,1962.9,0.49036834]
[1772538143282,0.58546517,1963.7,1962.9,0.49036834]
[1772538145088,0.58546517,1963.6,1962.9,7.16436834]
[1772538145284,0.58546517,1963.5,1962.9,0.49036834]
[1772538145581,0.58546517,1963.1,1962.6,0.44037246]
[1772538145785,0.58546517,1963.1,1962.3,0.44928115]
[1772538145983,0.58546517,1962.9,1962.3,7.12328115]
[1772538146489,0.58546517,1962.9,1962.3,7.12690619]
[1772538147488,0.58546517,1962.9,1962.4,0.44928115]
[1772538147889,0.58546517,1963.0,1962.4,0.44928115]
[1772538148190,0.58546517,1963.4,1962.4,0.44928115]
[1772538148790,0.58546517,1963.4,1962.6,0.42931097]
[1772538149791,0.58546517,1963.4,1962.7,7.10507568]
[1772538151489,0.58546517,1963.4,1962.3,0.00362504]
[1772538151689,0.58546517,1963.4,1962.6,0.43107568]
[1772538152693,0.58546517,1963.4,1962.4,0.42678043]
[1772538152894,0.58546517,1963.3,1962.4,0.42678043]
[1772538153888,0.58546517,1963.1,1962.4,0.42678043]
[1772538157196,0.58546517,1963.1,1962.4,0.37678043]
[1772538161702,0.58546517,1963.1,1962.3,6.67862504]
[1772538161903,0.58546517,1963.1,1962.4,6.676]
[1772538162304,0.58546517,1963.1,1962.4,7.04864992]
[1772538162506,0.58546517,1963.1,1962.5,0.37264992]
[1772538170310,0.55811448,1963.3,1962.5,0.37264992]
[1772538174607,0.55811448,1963.5,1962.5,0.37264992]
[1772538176315,0.50811448,1963.5,1962.5,0.37264992]
[1772538177016,0.50811448,1963.5,1962.7,0.41315466]
[1772538177315,0.50811448,1963.5,1962.9,0.41315466]
[1772538177513,0.50811448,1963.5,1962.9,7.08915466]
[1772538179010,0.50811448,1963.5,1962.4,0.33607641]
[1772538179315,0.50811448,1963.5,1962.6,0.33607641]
[1772538179518,0.50811448,1963.5,1962.4,7.01107641]
[1772538179711,0.55811448,1963.3,1962.4,0.33607641]
[1772538179911,0.55811448,1963.2,1962.3,0.30165807]
[1772538180112,0.55811448,1963.1,1962.3,0.30165807]
[1772538180306,7.91379908,1963.1,1962.3,0.00362504]
[1772538180512,7.91379908,1963.0,1962.3,0.00362504]
[1772538180716,0.55811448,1962.9,1962.3,0.00362504]
[1772538181015,0.55811448,1962.9,1962.0,0.29803303]
[1772538181016,0.55811448,1962.7,1962.0,0.29803303]
[1772538181314,0.55811448,1962.7,1961.8,0.30165807]
[1772538181912,0.55811448,1962.6,1961.9,0.30639111]
[1772538182116,0.56365791,1962.6,1961.9,0.30639111]
[1772538188318,0.56365791,1962.6,1961.8,0.00520464]
[1772538188522,0.55811448,1962.5,1961.8,0.00520464]
[1772538188716,0.55811448,1962.4,1961.8,0.00520464]
[1772538193117,0.55811448,1962.4,1961.8,0.2996652]
[1772538194522,0.55811448,1962.4,1961.8,0.00520464]
[1772538200123,0.59389084,1962.3,1961.0,0.27943089]
[1772538200526,0.59389084,1962.3,1961.1,0.27943089]
[1772538201126,0.59389084,1962.3,1961.1,0.28438704]
[1772538201325,0.59389084,1962.3,1961.2,0.27943089]
[1772538204227,0.59389084,1962.3,1961.3,0.25497]
[1772538204427,0.59943427,1962.6,1961.6,0.28039651]
[1772538204623,0.59943427,1962.6,1961.8,0.28039651]
[1772538205622,0.59943427,1962.6,1961.8,6.95939651]
[1772538206028,0.59943427,1962.6,1961.9,0.27792945]
[1772538207523,0.00554343,1962.6,1962.0,0.27792945]
[1772538208026,0.59389084,1962.7,1962.0,0.27792945]
[1772538208228,0.59389084,1963.1,1962.0,0.27792945]
[1772538208627,0.59389084,1963.1,1962.0,0.2852812]
[1772538208823,0.59389084,1963.1,1962.2,0.2852812]
[1772538209026,0.59963631,1963.1,1962.2,0.2852812]
[1772538209629,0.59389084,1963.0,1962.2,0.2852812]
[1772538209928,0.59389084,1963.0,1962.4,0.30062205]
[1772538212726,0.59389084,1963.0,1962.5,0.28506437]
[1772538213032,0.59389084,1963.0,1962.5,6.9695428]
[1772538214333,0.59389084,1963.0,1962.3,6.677]
[1772538214627,0.59389084,1963.0,1961.6,0.29197625]
[1772538214832,0.59389084,1963.0,1962.0,0.29197625]
[1772538215333,0.59389084,1963.0,1962.0,0.2978922]
[1772538217231,0.59389084,1963.0,1962.1,6.677]
[1772538217930,0.59389084,1963.0,1962.1,6.97061168]
[1772538218233,0.59389084,1963.0,1962.2,0.29361168]
[1772538219623,0.59389084,1963.0,1962.1,6.677]
[1772538220830,0.59389084,1963.0,1962.0,0.29952763]
[1772538221027,0.59389084,1962.9,1962.0,0.29952763]
[1772538221628,0.59389084,1962.7,1961.4,0.29705716]
[1772538221828,0.59389084,1962.6,1961.4,0.29705716]
[1772538222533,0.59389084,1962.6,1961.4,0.30329198]
[1772538222729,0.59389084,1962.6,1961.6,0.2976891]
[1772538225035,0.59389084,1962.6,1961.8,0.2935093]
[1772538227338,0.59389084,1962.6,1962.0,0.29513684]
[1772538228142,0.59389084,1962.6,1961.8,0.2946506]
[1772538228442,0.59389084,1962.6,1961.9,6.9726506]
[1772538229341,0.59389084,1962.6,1961.9,0.2946506]
[1772538229544,1.59983504,1962.4,1961.4,1.60606986]
[1772538229739,1.59983504,1962.4,1961.6,0.2963667]
[1772538229740,0.54720044,1962.3,1961.6,0.2963667]
[1772538229940,0.54720044,1962.3,1961.6,6.9743667]
[1772538231137,0.54720044,1962.3,1961.4,0.30260152]
[1772538231339,0.54720044,1962.3,1961.5,6.9743667]
[1772538231942,0.54720044,1962.3,1961.6,0.29470083]
[1772538232343,0.54720044,1962.3,1961.6,6.97270083]
[1772538232842,0.54720044,1962.3,1961.7,0.29470083]
[1772538236146,0.54720044,1962.6,1961.7,0.29470083]
[1772538239548,0.54720044,1962.6,1961.9,0.32482109]
[1772538240146,0.54720044,1962.6,1961.5,0.32360431]
[1772538240447,0.54720044,1962.6,1961.6,6.678]
[1772538240649,0.54720044,1962.6,1961.6,7.00160431]
[1772538241150,0.54720044,1962.5,1961.7,0.32360431]
[1772538241648,0.54720044,1962.1,1961.4,0.00623482]
[1772538242145,7.90692009,1962.1,1961.4,0.00623482]
[1772538242352,0.54720044,1962.0,1961.4,0.00623482]
[1772538242545,0.54720044,1962.0,1961.0,0.31940976]
[1772538242748,0.54720044,1961.9,1960.9,6.678]
[1772538243148,0.54720044,1961.8,1960.9,7.00364458]
[1772538243549,0.54720044,1961.8,1961.0,0.32564458]
[1772538244654,0.54720044,1961.8,1960.9,0.00551785]
[1772538244951,0.54720044,1961.8,1961.0,0.32161603]
[1772538247256,0.54720044,1961.8,1961.2,0.32809907]
[1772538247655,0.54720044,1961.8,1961.2,7.00709907]
[1772538247852,0.54720044,1961.8,1961.3,0.32992356]
[1772538248057,0.54720044,1962.2,1961.3,0.32992356]
[1772538250455,0.54720044,1962.5,1961.5,0.32867619]
[1772538250660,0.54720044,1962.5,1961.7,0.32867619]
[1772538250861,0.54720044,1962.5,1961.9,0.32867619]
[1772538252665,0.54720044,1962.5,1962.0,6.679]
[1772538252861,0.54720044,1962.5,1961.8,0.32375193]
[1772538253164,0.54720044,1962.5,1961.9,6.679]
[1772538253466,0.54720044,1962.5,1961.8,0.32375193]
[1772538253667,0.54720044,1962.5,1961.9,6.679]
[1772538254866,0.54720044,1962.5,1962.0,0.32307103]
[1772538256070,0.54720044,1962.9,1962.0,0.32307103]
[1772538257172,0.54720044,1962.9,1962.1,6.0812911]
[1772538257369,0.54720044,1962.9,1961.9,7.25318211]
[1772538257769,0.54720044,1962.9,1962.0,0.57418211]
[1772538258069,0.56228065,1962.8,1962.0,0.57418211]
[1772538258972,0.56228065,1962.8,1961.8,6.679]
[1772538259270,0.56228065,1962.8,1961.8,7.23766299]
[1772538259469,0.56228065,1962.8,1961.8,0.55866299]
[1772538259663,0.57033128,1962.7,1961.6,7.23666299]
[1772538259973,0.57033128,1962.7,1961.7,0.55866299]
[1772538260170,0.57033128,1962.6,1961.7,0.55866299]
[1772538265874,0.57033128,1962.8,1961.8,0.55866299]
[1772538266070,0.57033128,1962.8,1962.0,0.55866299]
[1772538266274,0.57607675,1963.1,1962.2,0.55866299]
[1772538266578,0.57607675,1963.1,1962.4,0.55866299]
[1772538266876,0.57607675,1963.1,1962.4,0.56425193]
[1772538268173,0.57607675,1963.1,1962.5,7.23666299]
[1772538268770,0.57607675,1963.1,1962.6,0.55866299]
[1772538269174,0.57607675,1963.1,1962.5,7.23666299]
[1772538269880,0.57607675,1963.1,1962.6,0.55866299]
[1772538271083,0.57607675,1963.1,1962.5,7.23666299]
[1772538271278,0.57607675,1963.1,1962.6,6.678]
[1772538272080,0.57607675,1963.1,1962.6,7.23666299]
[1772538273678,0.57607675,1963.1,1962.6,0.55866299]
[1772538273878,0.57607675,1963.1,1962.4,0.56425193]
[1772538274080,0.57607675,1963.1,1962.5,6.677]
[1772538274881,0.57607675,1963.1,1962.5,7.23566299]
[1772538275685,0.57607675,1963.1,1962.6,0.55866299]
[1772538277984,0.00574547,1963.1,1962.6,0.55866299]
[1772538278184,0.57033128,1963.2,1962.6,0.55866299]
[1772538278385,0.57033128,1963.4,1962.6,0.55866299]
[1772538278881,0.57033128,1963.5,1962.6,0.55866299]
[1772538279082,0.57033128,1963.5,1962.5,6.677]
[1772538279083,0.57033128,1963.5,1962.8,0.55866299]
[1772538279280,0.5748255,1963.5,1963.0,0.55866299]
[1772538279988,0.00449422,1963.5,1963.0,0.55866299]
[1772538280387,0.5748255,1963.5,1963.2,0.55866299]
[1772538281891,0.5748255,1963.5,1963.1,7.23466299]
[1772538282389,0.5748255,1963.5,1963.2,0.55866299]
[1772538282588,0.57033128,1963.6,1963.2,0.55866299]
[1772538282988,0.57033128,1964.0,1963.2,0.55866299]
[1772538283690,0.57410192,1964.0,1963.2,0.55866299]
[1772538284590,0.57033128,1963.8,1963.0,7.23466299]
[1772538284991,0.57033128,1963.8,1963.1,0.55866299]
[1772538285690,0.57033128,1963.8,1963.0,7.23466299]
[1772538285886,0.57033128,1963.8,1962.5,0.55866299]
[1772538286188,0.57033128,1963.8,1962.8,0.55866299]
[1772538287192,0.57410192,1964.0,1963.0,0.55866299]
[1772538287385,0.57410192,1964.0,1963.2,0.55866299]
[1772538287591,0.00377064,1964.0,1963.2,0.55866299]
[1772538287792,0.58982204,1964.7,1963.4,0.53915403]
[1772538288392,0.58982204,1964.7,1963.6,0.53915403]
[1772538288689,0.59393406,1964.7,1963.8,0.53915403]
[1772538288891,0.59393406,1964.7,1964.0,0.53915403]
[1772538293799,0.59393406,1964.7,1964.1,0.53915403]
[1772538296303,0.59393406,1964.7,1963.9,7.21215403]
[1772538298406,0.59393406,1964.7,1964.0,0.53915403]
[1772538300306,0.59393406,1964.7,1963.8,0.00659732]
[1772538300307,0.59393406,1964.7,1963.8,7.21775135]
[1772538300498,0.58982204,1964.5,1963.8,0.54575135]
[1772538300696,0.58982204,1964.5,1963.8,0.00659732]
[1772538302012,0.59393406,1964.7,1963.8,0.54575135]
[1772538302702,0.00411202,1964.7,1963.8,0.54575135]
[1772538304113,0.59393406,1964.7,1963.8,0.54575135]
[1772538304611,0.59393406,1964.7,1964.0,0.53915403]
[1772538306013,0.58982204,1965.1,1964.1,0.53915403]
[1772538306408,0.58982204,1965.1,1964.3,0.53915403]
[1772538307008,0.59635009,1965.1,1964.3,0.53915403]
[1772538307509,0.58982204,1965.0,1964.3,0.53915403]
[1772538307709,0.58982204,1965.0,1964.2,0.53915403]
[1772538308122,0.58982204,1965.0,1964.1,0.53915403]
[1772538308411,0.52982204,1965.0,1964.1,0.53915403]
[1772538309210,0.52982204,1965.0,1964.1,22.53915403]
[1772538309511,0.52982204,1965.0,1964.2,0.53915403]
[1772538315119,0.52982204,1965.0,1964.3,0.53915403]
[1772538316016,0.00652805,1965.1,1964.3,0.53915403]
[1772538317017,0.59635009,1965.1,1964.3,0.53915403]
[1772538317219,7.29353198,1965.0,1964.3,0.53915403]
[1772538317521,0.59635009,1965.1,1964.3,0.53915403]
[1772538317821,7.86023877,1965.0,1964.3,0.53915403]
[1772538318019,0.56739424,1965.0,1964.3,0.53915403]
[1772538319217,0.54269357,1964.9,1964.3,0.53915403]
[1772538319417,0.54269357,1964.8,1964.3,0.53915403]
[1772538320327,7.29250512,1965.0,1964.3,0.53915403]
[1772538320824,7.83519869,1965.0,1964.3,0.53915403]
[1772538321120,0.54269357,1964.9,1964.3,0.53915403]
[1772538321522,0.54269357,1964.9,1964.5,0.58783769]
[1772538321825,0.54269357,1964.9,1964.2,0.58783769]
[1772538323424,7.29245602,1964.9,1964.2,0.58783769]
[1772538323632,0.54269357,1964.9,1964.2,0.58783769]
[1772538324725,0.54922162,1965.1,1964.2,0.58783769]
[1772538325532,7.84086098,1965.1,1964.2,0.58783769]
[1772538325832,0.54922162,1965.1,1964.2,0.58783769]
[1772538326227,7.84065379,1965.1,1964.2,0.58783769]
[1772538326426,0.54922162,1965.1,1964.2,0.58783769]
[1772538326828,7.84036937,1965.1,1964.2,0.58783769]
[1772538327141,0.54922162,1965.1,1964.2,0.58783769]
[1772538327631,0.54269357,1965.0,1964.2,0.58783769]
[1772538328030,0.54269357,1964.9,1964.3,6.67]
[1772538328423,0.54269357,1964.9,1964.3,7.25783769]
[1772538329031,0.54269357,1964.9,1964.3,0.58783769]
[1772538329229,0.54269357,1964.9,1964.3,7.25783769]
[1772538331230,0.54269357,1964.7,1964.4,0.58783769]
[1772538331426,0.54269357,1964.7,1964.3,6.67]
[1772538331732,0.54269357,1964.7,1964.3,7.25783769]
[1772538332434,0.54269357,1964.8,1964.4,0.58783769]
[1772538333133,0.54269357,1964.8,1964.3,7.25783769]
[1772538333326,0.54269357,1964.8,1964.4,0.58783769]
[1772538333733,0.54269357,1964.7,1964.4,0.58783769]
[1772538334827,0.54269357,1964.7,1964.1,22.0]
[1772538335029,0.54269357,1964.5,1964.1,22.0]
[1772538335229,4.26213124,1964.9,1964.2,0.58783769]
[1772538335533,0.54269357,1964.7,1964.2,0.58783769]
[1772538335730,0.54269357,1964.9,1964.2,0.58783769]
[1772538335931,7.84355986,1964.8,1964.2,0.58783769]
[1772538336228,0.54269357,1964.8,1964.2,0.58783769]
[1772538337936,0.54269357,1964.8,1964.3,0.58783769]
[1772538338235,0.54269357,1964.8,1964.4,0.58783769]
[1772538338434,0.54269357,1964.9,1964.4,0.58783769]
[1772538339136,0.54269357,1964.8,1964.4,0.58783769]
[1772538340038,0.54269357,1964.8,1964.4,7.25783769]
[1772538340636,0.54269357,1964.8,1964.5,0.58783769]
[1772538342538,0.54269357,1964.8,1964.2,0.58783769]
[1772538342934,7.34120138,1964.8,1964.2,0.58783769]
[1772538343142,0.54269357,1964.8,1964.2,0.58783769]
[1772538344740,0.54269357,1964.8,1964.3,6.67]
[1772538345038,0.54269357,1964.8,1964.3,7.25783769]
[1772538345240,0.54269357,1964.7,1964.4,0.58783769]
[1772538345439,0.54269357,1964.8,1964.4,0.58783769]
[1772538347643,0.54269357,1965.0,1964.4,0.58783769]
[1772538347937,0.57033259,1964.9,1964.4,0.58783769]
[1772538349138,7.34168796,1964.9,1964.4,0.58783769]
[1772538349337,0.57033259,1964.8,1964.5,0.53984386]
[1772538349843,0.57033259,1965.0,1964.5,0.53984386]
[1772538350045,0.57033259,1964.9,1964.5,0.53984386]
[1772538350947,7.34857949,1965.1,1964.5,0.53984386]
[1772538351151,7.91891208,1965.1,1964.5,0.53984386]
[1772538351344,0.57686064,1965.1,1964.5,0.53984386]
[1772538352148,7.91827616,1965.1,1964.5,0.53984386]
[1772538352445,0.57686064,1965.1,1964.5,0.53984386]
[1772538353148,0.57033259,1965.0,1964.5,0.53984386]
[1772538353343,0.57686064,1965.1,1964.5,0.53984386]
[1772538354147,0.00652805,1965.1,1964.5,0.53984386]
[1772538355541,0.57686064,1965.1,1964.5,0.53984386]
[1772538355746,0.57686064,1965.1,1964.5,7.20984386]
[1772538356144,0.57033259,1965.0,1964.5,7.20984386]
[1772538356445,0.57033259,1965.0,1964.6,0.53984386]
[1772538357044,0.57033259,1965.0,1964.5,0.53984386]
[1772538357249,0.57033259,1965.0,1964.5,7.20984386]
[1772538357548,0.57033259,1965.0,1964.5,6.67]
[1772538357739,0.57033259,1965.0,1964.5,7.20984386]
[1772538358947,0.57033259,1964.9,1964.2,0.53984386]
[1772538359247,0.57033259,1964.9,1964.3,7.20984386]
[1772538360047,0.57033259,1964.8,1964.3,6.67]
[1772538360243,0.57033259,1964.8,1964.2,0.53984386]
[1772538360545,0.00652805,1965.1,1964.2,0.53984386]
[1772538360747,0.00652805,1965.1,1964.4,0.53984386]
[1772538361047,0.00652805,1965.1,1964.6,0.53984386]
[1772538362043,0.57033259,1965.5,1964.6,0.53984386]
[1772538363043,0.57393353,1965.5,1964.6,0.53984386]
[1772538363748,0.57393353,1965.5,1964.7,6.67]
[1772538364046,0.57393353,1965.5,1964.8,0.53984386]
[1772538364849,0.00360094,1965.5,1964.8,0.53984386]
[1772538365149,0.57393353,1965.5,1965.0,0.53984386]
[1772538365951,0.00360094,1965.5,1965.0,0.53984386]
[1772538367653,0.57393353,1965.5,1965.0,0.53984386]
[1772538370150,0.57393353,1965.5,1965.0,6.669]
[1772538370355,0.57393353,1965.5,1964.8,0.53984386]
[1772538370555,0.00360094,1965.5,1964.9,0.53984386]
[1772538371955,0.25012415,1965.5,1965.1,0.53984386]
[1772538374454,0.25012415,1965.5,1965.0,0.53984386]
[1772538375359,0.00360094,1965.5,1965.0,0.53984386]
[1772538377356,0.24413926,1965.5,1965.0,0.53984386]
[1772538378163,0.24413926,1965.5,1964.9,0.57467306]
[1772538380065,0.00360094,1965.5,1964.9,0.57467306]
[1772538382266,0.00360094,1965.5,1965.0,0.56420215]
[1772538385468,0.23171234,1965.9,1965.0,0.56420215]
[1772538385663,4.49744452,1966.3,1965.0,0.56420215]
[1772538385866,0.23244312,1966.1,1965.0,0.56420215]
[1772538386066,0.23244312,1966.0,1965.2,0.56420215]
[1772538386466,0.23695124,1966.0,1965.2,0.56912026]
[1772538386762,0.23244312,1965.9,1965.2,0.56912026]
[1772538389064,0.22537894,1965.8,1965.2,0.56912026]
[1772538390473,0.20822045,1965.7,1965.2,0.56912026]
[1772538392673,0.20553534,1965.6,1965.0,0.56420215]
[1772538392966,0.21002956,1965.4,1965.0,0.56420215]
[1772538393174,0.21002956,1965.6,1965.0,0.56420215]
[1772538393373,0.21002956,1965.5,1965.0,0.56420215]
[1772538393572,7.3561342,1965.5,1965.0,0.57033797]
[1772538393771,0.21002956,1965.4,1965.0,0.57033797]
[1772538395174,0.20826274,1965.5,1965.0,0.57033797]
[1772538395976,7.35266183,1965.6,1965.0,0.57033797]
[1772538396274,7.14577816,1965.6,1965.0,0.57033797]
[1772538396769,7.35266183,1965.6,1965.0,0.57033797]
[1772538397270,0.20688367,1965.5,1965.0,0.57033797]
[1772538397467,0.20688367,1965.5,1965.0,0.00613582]
[1772538397673,0.20688367,1965.4,1964.9,22.54027745]
[1772538397972,7.35350647,1965.4,1965.0,0.56420215]
[1772538398272,0.20772831,1965.5,1965.0,0.56420215]
[1772538398468,0.20772831,1965.3,1965.0,0.56420215]
[1772538398669,0.20772831,1965.3,1965.0,0.00531979]
[1772538398870,0.20772831,1965.4,1965.0,0.56952194]
[1772538399273,0.20772831,1965.4,1965.0,0.56367608]
[1772538400474,7.37883739,1965.5,1965.0,0.56881557]
[1772538400875,0.21413445,1965.4,1965.0,0.56881557]
[1772538401073,0.21412496,1965.3,1964.9,21.9760753]
[1772538401375,0.21412496,1965.3,1964.9,22.54027745]
[1772538401571,0.21412496,1965.3,1964.9,21.9760753]
[1772538401774,0.21412496,1965.3,1964.9,22.54027745]
[1772538401975,0.20097501,1965.2,1964.9,22.54638359]
[1772538402181,0.20097501,1965.5,1964.9,22.54638359]
[1772538402375,7.16118483,1965.5,1965.0,0.56420215]
[1772538402572,0.20097501,1965.8,1965.1,0.56420215]
[1772538402769,7.16118483,1965.7,1965.1,0.56420215]
[1772538402970,0.20097501,1965.8,1965.1,0.56420215]
[1772538407085,0.19958925,1965.7,1965.1,0.56420215]
[1772538407583,7.36077408,1965.8,1965.1,0.56420215]
[1772538407772,0.19958925,1965.8,1965.1,0.56420215]
[1772538407979,0.19958925,1965.8,1965.2,0.59530162]
[1772538408382,7.15892767,1965.9,1965.2,0.59530162]
[1772538408583,7.36153245,1965.9,1965.2,0.59530162]
[1772538409085,0.20260478,1965.8,1965.2,0.59530162]
[1772538409590,0.20260478,1965.7,1965.2,0.59530162]
[1772538409788,0.20260478,1965.6,1965.0,0.59530162]
[1772538409995,0.20103473,1965.5,1965.0,0.59530162]
[1772538410389,0.20103473,1965.4,1965.0,0.59530162]
[1772538411294,0.20103473,1965.6,1965.0,0.59530162]
[1772538411493,0.20103473,1965.5,1965.0,0.59530162]
[1772538414302,0.45547473,1965.5,1964.9,21.98218144]
[1772538414596,0.20053407,1965.4,1964.9,22.57748306]
[1772538414796,0.20053407,1965.3,1964.9,22.57748306]
[1772538415700,0.20053407,1965.3,1964.9,21.15536084]
[1772538415899,7.15889731,1965.3,1964.9,21.15536084]
[1772538416099,7.15889731,1965.2,1964.9,21.15536084]
[1772538416299,4.26213124,1965.4,1964.9,21.15536084]
[1772538416503,7.15921498,1965.3,1964.9,20.63725084]
[1772538416799,7.15921498,1965.3,1964.9,21.23556931]
[1772538417099,6.668,1965.5,1965.0,0.59831847]
[1772538417300,10.93013124,1965.7,1965.0,0.59831847]
[1772538417491,7.15821547,1965.6,1965.0,0.59831847]
[1772538418696,7.15821547,1965.5,1965.0,0.59831847]
[1772538418897,10.93013124,1965.8,1965.0,0.59831847]
[1772538419098,7.15889426,1965.7,1965.0,0.59831847]
[1772538419401,7.15889426,1965.6,1965.0,0.59831847]
[1772538420796,0.57936887,1965.8,1965.2,0.59530162]
[1772538421199,0.57936887,1965.9,1965.2,0.59530162]
[1772538422301,0.57936887,1965.9,1965.3,0.59530162]
[1772538423002,0.57936887,1965.8,1965.0,0.59530162]
[1772538423301,0.57936887,1965.6,1965.0,0.59530162]
[1772538424103,0.57936887,1965.6,1964.9,20.63725084]
[1772538424402,0.57936887,1965.6,1964.9,21.23255246]
[1772538426303,0.57936887,1965.6,1965.0,0.59530162]
[1772538430005,0.57936887,1965.6,1964.9,22.23250372]
[1772538430006,0.55479054,1965.4,1964.9,21.23255246]
[1772538431503,0.55479054,1965.4,1964.9,20.10973002]
[1772538432003,1.59525288,1965.1,1964.9,0.73816663]
[1772538432305,6.668,1965.3,1964.9,0.73816663]
[1772538432705,6.96192571,1965.2,1965.0,0.59749357]
[1772538433105,0.57936887,1965.4,1965.0,0.59749357]
[1772538433300,7.54029753,1965.4,1964.9,1.3356602]
[1772538433504,0.57936887,1965.3,1964.9,1.3356602]
[1772538433908,0.57936887,1965.2,1964.9,1.4043962]
[1772538434108,0.57936887,1965.2,1964.9,0.73816663]
[1772538435006,0.57936887,1965.3,1965.0,0.6650143]
[1772538435311,7.24836887,1965.6,1965.0,0.6650143]
[1772538435810,0.57936887,1965.5,1965.0,0.6650143]
[1772538436909,7.24836887,1965.6,1965.0,0.6650143]
[1772538438107,5.06075045,1966.0,1965.0,0.6650143]
[1772538438308,0.79411109,1965.8,1965.2,0.99735172]
[1772538438507,0.79411109,1965.7,1965.2,0.99735172]
[1772538439208,0.73695609,1965.5,1964.9,0.73816663]
[1772538439411,0.73695609,1965.3,1964.9,1.73800158]
[1772538439905,7.37532897,1965.5,1965.0,0.99983495]
[1772538440109,0.70632897,1965.6,1965.0,0.99983495]
[1772538440410,6.669,1965.6,1965.1,0.99983495]
[1772538440807,0.70632897,1965.8,1965.1,0.99983495]
[1772538441210,0.67727937,1965.9,1965.1,0.99983495]
[1772538442714,0.63471253,1966.0,1965.3,0.99983495]
[1772538443915,0.6167584,1965.8,1965.3,0.99983495]
[1772538445909,0.6167584,1965.8,1965.1,0.99983495]
[1772538446112,0.9450576,1966.2,1965.6,0.99983495]
[1772538446510,1.59525288,1966.4,1965.6,0.99983495]
[1772538446511,0.9450576,1966.0,1965.6,0.99983495]
[1772538447207,0.95038832,1966.0,1965.6,0.99983495]
[1772538447412,0.00533072,1966.0,1965.6,0.99983495]
[1772538449712,0.9450576,1965.8,1965.4,0.99983495]
[1772538450111,0.9450576,1965.9,1965.4,0.99983495]
[1772538451114,0.9450576,1965.8,1965.4,0.99983495]
[1772538451713,3.4890576,1965.7,1965.4,0.99983495]
[1772538451915,0.9450576,1965.7,1965.2,0.99983495]
[1772538452417,0.9450576,1965.6,1965.0,0.99983495]
[1772538452814,0.9450576,1965.5,1965.0,0.99983495]
[1772538453518,3.4890576,1965.4,1965.0,0.99983495]
[1772538453717,0.9450576,1965.4,1965.0,0.99983495]
[1772538453917,3.4890576,1965.4,1965.0,0.99983495]
[1772538454112,2.544,1965.4,1965.0,0.99983495]
[1772538454718,3.4890576,1965.4,1965.0,0.99983495]
[1772538455720,0.9450576,1965.2,1964.9,1.73800158]
[1772538455922,0.9450576,1965.6,1965.0,0.99983495]
[1772538456223,0.9450576,1965.4,1965.0,0.99983495]
[1772538456721,3.4890576,1965.4,1965.0,0.99983495]
[1772538456922,0.9450576,1965.3,1964.9,1.73800158]
[1772538457418,3.4890576,1965.3,1965.0,0.99983495]
[1772538457820,2.544,1965.2,1965.0,0.99983495]
[1772538458116,3.4890576,1965.2,1964.9,0.73816663]
[1772538458322,0.9450576,1965.2,1964.9,1.73800158]
[1772538458722,0.9450576,1965.2,1964.9,0.73816663]
[1772538458922,3.4890576,1965.1,1964.9,0.73816663]
[1772538459122,0.9450576,1965.1,1964.9,0.73816663]
[1772538459523,3.4890576,1965.1,1964.9,0.73816663]
[1772538459818,0.9450576,1965.0,1964.9,0.73816663]
[1772538460019,0.9450576,1965.1,1964.9,0.73816663]
[1772538460523,2.544,1965.0,1964.9,0.73816663]
[1772538460921,3.4890576,1965.0,1964.9,0.73816663]
[1772538461118,3.4890576,1965.0,1964.7,0.99983495]
[1772538461414,2.544,1964.9,1964.7,0.99983495]
[1772538461615,0.60656326,1965.1,1964.7,0.99983495]
[1772538461820,2.544,1965.0,1964.7,0.99983495]
[1772538462120,2.544,1965.0,1964.7,1.00508152]
[1772538462321,2.544,1964.9,1964.7,1.00508152]
[1772538462521,0.60656326,1965.1,1964.7,1.00508152]
[1772538462724,2.544,1965.0,1964.7,1.00508152]